[Event "December 19 Early 2023"]
[Site "https://www.chess.com"]
[Date "2023.12.19"]
[Round "6"]
[White "Kowalysko, Roman"]
[Black "Avila Rodriguez, Joshua Ad"]
[Result "0-1"]
[Board "183"]
[TimeControl "180+1"]
[WhiteFideId "30918510"]
[BlackFideId "5126444"]
[WhiteElo "2270"]
[BlackElo "2097"]
[WhiteTeam "USA"]
[BlackTeam "MEX"]
[WhiteClock "0:00:50"]
[BlackClock "0:01:14"]

1. Nc3 {[%clk 0:02:59]}  d5 {[%clk 0:02:59]} 2. e4 {[%clk 0:02:59]}  d4 {[%clk 0:02:59]} 3. Nce2 {[%clk 0:02:59]}  e5 {[%clk 0:02:59]} 4. Ng3 {[%clk 0:02:59]}  g6 {[%clk 0:02:56]} 5. Bc4 {[%clk 0:02:59]}  Bg7 {[%clk 0:02:56]} 6. d3 {[%clk 0:02:59]}  Ne7 {[%clk 0:02:55]} 7. Nf3 {[%clk 0:02:59]}  O-O {[%clk 0:02:53]} 8. O-O {[%clk 0:02:59]}  a6 {[%clk 0:02:50]} 9. a4 {[%clk 0:02:58]}  Nbc6 {[%clk 0:02:50]} 10. Nh4 {[%clk 0:02:49]}  h6 {[%clk 0:02:43]} 11. h3 {[%clk 0:02:30]}  Kh7 {[%clk 0:02:42]} 12. Nf3 {[%clk 0:02:30]}  f5 {[%clk 0:02:21]} 13. exf5 {[%clk 0:02:30]}  gxf5 {[%clk 0:02:21]} 14. Re1 {[%clk 0:02:26]}  Qe8 {[%clk 0:02:18]} 15. Nh2 {[%clk 0:02:11]}  Qg6 {[%clk 0:02:15]} 16. Qh5 {[%clk 0:02:11]}  Bd7 {[%clk 0:02:06]} 17. Qxg6+ {[%clk 0:02:11]}  Nxg6 {[%clk 0:02:05]} 18. Bd5 {[%clk 0:02:02]}  Rae8 {[%clk 0:02:02]} 19. Bxc6 {[%clk 0:02:01]}  Bxc6 {[%clk 0:02:01]} 20. b3 {[%clk 0:01:46]}  e4 {[%clk 0:01:49]} 21. Ba3 {[%clk 0:01:27]}  Rf7 {[%clk 0:01:45]} 22. Nh5 {[%clk 0:01:27]}  Bh8 {[%clk 0:01:41]} 23. dxe4 {[%clk 0:01:13]}  fxe4 {[%clk 0:01:41]} 24. Ng4 {[%clk 0:01:13]}  Nf4 {[%clk 0:01:21]} 25. Nxf4 {[%clk 0:01:11]}  Rxf4 {[%clk 0:01:21]} 26. Rad1 {[%clk 0:01:10]}  h5 {[%clk 0:01:19]} 27. Nh2 {[%clk 0:01:09]}  Rg8 {[%clk 0:01:17]} 28. g3 {[%clk 0:00:58]}  Rf7 {[%clk 0:01:16]} 29. Bc5 {[%clk 0:00:55]}  e3 {[%clk 0:01:15]} 30. fxe3 {[%clk 0:00:50]}  Rxg3# {[%clk 0:01:14]} 0-1

[Event "December 19 Early 2023"]
[Site "https://www.chess.com"]
[Date "2023.12.19"]
[Round "6"]
[White "Player, Edmund C"]
[Black "Tikhonov, Viacheslav"]
[Result "0-1"]
[Board "184"]
[TimeControl "180+1"]
[WhiteFideId "406520"]
[BlackFideId "44196407"]
[WhiteElo "2015"]
[BlackElo "2209"]
[WhiteTeam "ENG"]
[BlackTeam "RUS"]
[WhiteClock "0:00:00"]
[BlackClock "0:00:04"]

1. Nc3 {[%clk 0:03:00]}  c5 {[%clk 0:02:58]} 2. e4 {[%clk 0:03:00]}  g6 {[%clk 0:02:57]} 3. g3 {[%clk 0:02:59]}  Bg7 {[%clk 0:02:56]} 4. Bg2 {[%clk 0:02:59]}  Nc6 {[%clk 0:02:57]} 5. Nge2 {[%clk 0:02:50]}  e6 {[%clk 0:02:55]} 6. O-O {[%clk 0:02:47]}  Nge7 {[%clk 0:02:54]} 7. d3 {[%clk 0:02:47]}  O-O {[%clk 0:02:54]} 8. Be3 {[%clk 0:02:47]}  b6 {[%clk 0:02:54]} 9. h3 {[%clk 0:02:46]}  d5 {[%clk 0:02:53]} 10. exd5 {[%clk 0:02:44]}  Nxd5 {[%clk 0:02:52]} 11. Nxd5 {[%clk 0:02:42]}  exd5 {[%clk 0:02:53]} 12. d4 {[%clk 0:02:42]}  c4 {[%clk 0:02:44]} 13. Qd2 {[%clk 0:02:36]}  Be6 {[%clk 0:02:41]} 14. Bh6 {[%clk 0:02:33]}  Qd7 {[%clk 0:02:41]} 15. Kh2 {[%clk 0:02:29]}  b5 {[%clk 0:02:36]} 16. Bxg7 {[%clk 0:01:46]}  Kxg7 {[%clk 0:02:36]} 17. Ng1 {[%clk 0:01:45]}  b4 {[%clk 0:02:31]} 18. c3 {[%clk 0:01:43]}  bxc3 {[%clk 0:02:24]} 19. bxc3 {[%clk 0:01:44]}  Rab8 {[%clk 0:02:19]} 20. Nf3 {[%clk 0:01:34]}  Qd6 {[%clk 0:02:13]} 21. Rfe1 {[%clk 0:01:21]}  a5 {[%clk 0:02:10]} 22. Ne5 {[%clk 0:01:18]}  f6 {[%clk 0:01:24]} 23. Nxc6 {[%clk 0:00:54]}  Qxc6 {[%clk 0:01:25]} 24. Re3 {[%clk 0:00:47]}  a4 {[%clk 0:01:20]} 25. Rae1 {[%clk 0:00:47]}  Rfe8 {[%clk 0:01:09]} 26. Qc1 {[%clk 0:00:36]}  Qd6 {[%clk 0:00:58]} 27. h4 {[%clk 0:00:32]}  Bf7 {[%clk 0:00:41]} 28. Rxe8 {[%clk 0:00:26]}  Bxe8 {[%clk 0:00:42]} 29. Re3 {[%clk 0:00:14]}  a3 {[%clk 0:00:37]} 30. Qe1 {[%clk 0:00:10]}  Bf7 {[%clk 0:00:37]} 31. h5 {[%clk 0:00:08]}  Rb2 {[%clk 0:00:32]} 32. Re2 {[%clk 0:00:03]}  Qb6 {[%clk 0:00:20]} 33. hxg6 {[%clk 0:00:02]}  hxg6 {[%clk 0:00:20]} 34. Re7 {[%clk 0:00:03]}  Qd6 {[%clk 0:00:07]} 35. Re2 {[%clk 0:00:03]}  Kf8 {[%clk 0:00:04]} 36. Rd2 {[%clk 0:00:03]}  Qb6 {[%clk 0:00:03]} 37. Qe2 {[%clk 0:00:03]}  Qb7 {[%clk 0:00:02]} 38. Qe3 {[%clk 0:00:03]}  Rxd2 {[%clk 0:00:02]} 39. Qxd2 {[%clk 0:00:03]}  g5 {[%clk 0:00:02]} 40. Qe1 {[%clk 0:00:03]}  Qb2 {[%clk 0:00:02]} 41. Qe3 {[%clk 0:00:02]}  Qxa2 {[%clk 0:00:02]} 42. Qf3 {[%clk 0:00:03]}  Qb1 {[%clk 0:00:02]} 43. Qg4 {[%clk 0:00:02]}  Qh7+ {[%clk 0:00:02]} 44. Kg1 {[%clk 0:00:02]}  a2 {[%clk 0:00:03]} 45. Qc8+ {[%clk 0:00:01]}  Kg7 {[%clk 0:00:03]} 46. Qa8 {[%clk 0:00:01]}  Qb1+ {[%clk 0:00:04]} 47. Kh2 {[%clk 0:00:02]}  a1=Q {[%clk 0:00:05]} 48. Qd8 {[%clk 0:00:01]}  Qh7+ {[%clk 0:00:05]} 49. Bh3 {[%clk 0:00:01]}  Qxh3+ {[%clk 0:00:03]} 50. Kxh3 {[%clk 0:00:00]}  Qh1+ {[%clk 0:00:04]} 0-1

[Event "December 19 Early 2023"]
[Site "https://www.chess.com"]
[Date "2023.12.19"]
[Round "6"]
[White "Rogov, Matfey"]
[Black "Rodriguez Santiago, Jaime"]
[Result "1-0"]
[Board "185"]
[TimeControl "180+1"]
[WhiteFideId "44191308"]
[BlackFideId "3100898"]
[WhiteElo "2057"]
[BlackElo "2025"]
[WhiteTeam "RUS"]
[BlackTeam "PUR"]
[WhiteClock "0:01:36"]
[BlackClock "0:00:50"]

1. Nc3 {[%clk 0:03:00]}  Nf6 {[%clk 0:02:59]} 2. e4 {[%clk 0:02:58]}  d6 {[%clk 0:02:51]} 3. d4 {[%clk 0:02:57]}  g6 {[%clk 0:02:50]} 4. Bf4 {[%clk 0:02:58]}  Bg7 {[%clk 0:02:49]} 5. Qd2 {[%clk 0:02:57]}  c6 {[%clk 0:02:48]} 6. O-O-O {[%clk 0:02:56]}  Nbd7 {[%clk 0:02:48]} 7. Bh6 {[%clk 0:02:53]}  Bxh6 {[%clk 0:02:46]} 8. Qxh6 {[%clk 0:02:54]}  b5 {[%clk 0:02:47]} 9. e5 {[%clk 0:02:47]}  dxe5 {[%clk 0:02:45]} 10. dxe5 {[%clk 0:02:48]}  Ng4 {[%clk 0:02:45]} 11. Qg7 {[%clk 0:02:46]}  Rf8 {[%clk 0:02:45]} 12. Nh3 {[%clk 0:02:27]}  Qb6 {[%clk 0:02:41]} 13. f4 {[%clk 0:02:19]}  b4 {[%clk 0:02:28]} 14. Na4 {[%clk 0:02:05]}  Qe3+ {[%clk 0:02:22]} 15. Kb1 {[%clk 0:02:04]}  h6 {[%clk 0:02:06]} 16. Bd3 {[%clk 0:01:55]}  Nf2 {[%clk 0:01:47]} 17. Nxf2 {[%clk 0:01:50]}  Qxf2 {[%clk 0:01:47]} 18. e6 {[%clk 0:01:50]}  Nf6 {[%clk 0:01:16]} 19. exf7+ {[%clk 0:01:39]}  Rxf7 {[%clk 0:00:50]} 20. Qh8+ {[%clk 0:01:36]} 1-0

[Event "December 19 Early 2023"]
[Site "https://www.chess.com"]
[Date "2023.12.19"]
[Round "6"]
[White "Hrebenshchykova, Yelyzaveta"]
[Black "Skurikhin, Dmitrij"]
[Result "1/2-1/2"]
[Board "186"]
[TimeControl "180+1"]
[WhiteFideId "14159899"]
[BlackFideId "4161297"]
[WhiteElo "2045"]
[BlackElo "2197"]
[WhiteTeam "UKR"]
[BlackTeam "RUS"]
[WhiteClock "0:00:20"]
[BlackClock "0:00:58"]

1. e4 {[%clk 0:02:57]}  e6 {[%clk 0:01:50]} 2. d4 {[%clk 0:02:55]}  d5 {[%clk 0:01:49]} 3. Nc3 {[%clk 0:02:55]}  Nf6 {[%clk 0:01:48]} 4. Bg5 {[%clk 0:02:54]}  dxe4 {[%clk 0:01:47]} 5. Nxe4 {[%clk 0:02:54]}  Nbd7 {[%clk 0:01:47]} 6. Nf3 {[%clk 0:02:48]}  Be7 {[%clk 0:01:47]} 7. Nxf6+ {[%clk 0:02:42]}  Nxf6 {[%clk 0:01:48]} 8. Bd3 {[%clk 0:02:42]}  b6 {[%clk 0:01:43]} 9. Bb5+ {[%clk 0:01:53]}  Bd7 {[%clk 0:01:42]} 10. a4 {[%clk 0:01:53]}  O-O {[%clk 0:01:39]} 11. O-O {[%clk 0:01:52]}  Bxb5 {[%clk 0:01:35]} 12. axb5 {[%clk 0:01:52]}  Qd5 {[%clk 0:01:35]} 13. Qe2 {[%clk 0:01:52]}  h6 {[%clk 0:01:34]} 14. c4 {[%clk 0:01:46]}  Qf5 {[%clk 0:01:29]} 15. Bh4 {[%clk 0:01:45]}  Rfd8 {[%clk 0:01:29]} 16. Rfd1 {[%clk 0:01:32]}  Bd6 {[%clk 0:01:26]} 17. Ne5 {[%clk 0:01:16]}  Bxe5 {[%clk 0:01:26]} 18. dxe5 {[%clk 0:01:16]}  Rxd1+ {[%clk 0:01:17]} 19. Rxd1 {[%clk 0:01:17]}  Qe4 {[%clk 0:01:16]} 20. Qxe4 {[%clk 0:01:05]}  Nxe4 {[%clk 0:01:16]} 21. Rd7 {[%clk 0:00:44]}  Rc8 {[%clk 0:01:13]} 22. f3 {[%clk 0:00:43]}  Nc5 {[%clk 0:01:11]} 23. Rd1 {[%clk 0:00:40]}  c6 {[%clk 0:01:05]} 24. Rc1 {[%clk 0:00:24]}  Nd3 {[%clk 0:00:58]} 25. Ra1 {[%clk 0:00:20]} 1/2-1/2

[Event "December 19 Early 2023"]
[Site "https://www.chess.com"]
[Date "2023.12.19"]
[Round "6"]
[White "De Souza, Cristiano Gomes"]
[Black "Namitbir Singh Walia"]
[Result "0-1"]
[Board "187"]
[TimeControl "180+1"]
[WhiteFideId "2151758"]
[BlackFideId "35071068"]
[WhiteElo "2068"]
[BlackElo "2239"]
[WhiteTeam "BRA"]
[BlackTeam "IND"]
[WhiteClock "0:00:11"]
[BlackClock "0:00:06"]

1. d4 {[%clk 0:03:00]}  d5 {[%clk 0:02:56]} 2. c4 {[%clk 0:03:00]}  e6 {[%clk 0:02:56]} 3. Nf3 {[%clk 0:03:00]}  Nf6 {[%clk 0:02:56]} 4. Nc3 {[%clk 0:03:00]}  Be7 {[%clk 0:02:55]} 5. Bg5 {[%clk 0:03:00]}  O-O {[%clk 0:02:54]} 6. e3 {[%clk 0:03:00]}  b6 {[%clk 0:02:51]} 7. Rc1 {[%clk 0:02:59]}  Bb7 {[%clk 0:02:48]} 8. Bxf6 {[%clk 0:02:57]}  Bxf6 {[%clk 0:02:48]} 9. cxd5 {[%clk 0:02:57]}  exd5 {[%clk 0:02:47]} 10. b4 {[%clk 0:02:58]}  c6 {[%clk 0:02:33]} 11. a4 {[%clk 0:02:57]}  Nd7 {[%clk 0:02:29]} 12. Be2 {[%clk 0:02:56]}  Qe7 {[%clk 0:02:26]} 13. Qb3 {[%clk 0:02:54]}  Rfe8 {[%clk 0:02:09]} 14. O-O {[%clk 0:02:53]}  Qd6 {[%clk 0:02:06]} 15. Rfd1 {[%clk 0:02:42]}  g6 {[%clk 0:02:02]} 16. h3 {[%clk 0:02:41]}  Bg7 {[%clk 0:02:03]} 17. Rd2 {[%clk 0:02:34]}  Nf6 {[%clk 0:02:01]} 18. Rdc2 {[%clk 0:02:29]}  Ne4 {[%clk 0:02:00]} 19. Nxe4 {[%clk 0:02:23]}  Rxe4 {[%clk 0:02:01]} 20. Nd2 {[%clk 0:02:22]}  Ree8 {[%clk 0:02:00]} 21. b5 {[%clk 0:02:17]}  Rac8 {[%clk 0:01:51]} 22. bxc6 {[%clk 0:02:16]}  Rxc6 {[%clk 0:01:52]} 23. Bb5 {[%clk 0:02:11]}  Rxc2 {[%clk 0:01:48]} 24. Rxc2 {[%clk 0:02:08]}  Rc8 {[%clk 0:01:48]} 25. Rxc8+ {[%clk 0:02:04]}  Bxc8 {[%clk 0:01:49]} 26. Qc3 {[%clk 0:02:00]}  Bd7 {[%clk 0:01:48]} 27. Nf3 {[%clk 0:01:59]}  h6 {[%clk 0:01:41]} 28. g4 {[%clk 0:01:51]}  Bf6 {[%clk 0:01:28]} 29. Kg2 {[%clk 0:01:50]}  Kg7 {[%clk 0:01:27]} 30. Nd2 {[%clk 0:01:32]}  Be7 {[%clk 0:01:25]} 31. Nb3 {[%clk 0:01:26]}  Be6 {[%clk 0:01:20]} 32. a5 {[%clk 0:01:21]}  f5 {[%clk 0:01:07]} 33. axb6 {[%clk 0:01:17]}  axb6 {[%clk 0:01:05]} 34. Be2 {[%clk 0:01:12]}  Qb4 {[%clk 0:00:53]} 35. Qxb4 {[%clk 0:01:10]}  Bxb4 {[%clk 0:00:54]} 36. Bf3 {[%clk 0:01:09]}  Kf6 {[%clk 0:00:51]} 37. gxf5 {[%clk 0:01:07]}  Kxf5 {[%clk 0:00:51]} 38. Nc1 {[%clk 0:01:04]}  h5 {[%clk 0:00:50]} 39. Nd3 {[%clk 0:01:03]}  Bd6 {[%clk 0:00:50]} 40. Be2 {[%clk 0:00:52]}  Kf6 {[%clk 0:00:36]} 41. f3 {[%clk 0:00:47]}  Bf5 {[%clk 0:00:31]} 42. Nf2 {[%clk 0:00:43]}  Bc2 {[%clk 0:00:26]} 43. e4 {[%clk 0:00:40]}  Ke6 {[%clk 0:00:25]} 44. Bd3 {[%clk 0:00:38]}  Bxd3 {[%clk 0:00:21]} 45. Nxd3 {[%clk 0:00:37]}  dxe4 {[%clk 0:00:20]} 46. fxe4 {[%clk 0:00:37]}  b5 {[%clk 0:00:21]} 47. Kf3 {[%clk 0:00:36]}  b4 {[%clk 0:00:21]} 48. d5+ {[%clk 0:00:22]}  Kf6 {[%clk 0:00:20]} 49. Ke3 {[%clk 0:00:20]}  b3 {[%clk 0:00:16]} 50. Nb2 {[%clk 0:00:14]}  Be5 {[%clk 0:00:14]} 51. Nc4 {[%clk 0:00:13]}  b2 {[%clk 0:00:13]} 52. Na3 {[%clk 0:00:13]}  Bd6 {[%clk 0:00:12]} 53. Nb1 {[%clk 0:00:13]}  Ke5 {[%clk 0:00:12]} 54. Kd3 {[%clk 0:00:13]}  g5 {[%clk 0:00:12]} 55. Nd2 {[%clk 0:00:12]}  g4 {[%clk 0:00:09]} 56. hxg4 {[%clk 0:00:12]}  hxg4 {[%clk 0:00:09]} 57. Nc4+ {[%clk 0:00:13]}  Kf4 {[%clk 0:00:06]} 58. Nxb2 {[%clk 0:00:12]}  Kf3 {[%clk 0:00:05]} 59. Nc4 {[%clk 0:00:12]}  g3 {[%clk 0:00:06]} 60. e5 {[%clk 0:00:11]}  g2 {[%clk 0:00:06]} 61. Nxd6 {[%clk 0:00:11]}  g1=Q {[%clk 0:00:07]} 62. e6 {[%clk 0:00:11]}  Qe3+ {[%clk 0:00:07]} 63. Kc4 {[%clk 0:00:11]}  Qc1+ {[%clk 0:00:07]} 64. Kb5 {[%clk 0:00:11]}  Qc7 {[%clk 0:00:05]} 65. Nc4 {[%clk 0:00:10]}  Ke4 {[%clk 0:00:05]} 66. d6 {[%clk 0:00:10]}  Qb7+ {[%clk 0:00:05]} 67. Kc5 {[%clk 0:00:10]}  Qa7+ {[%clk 0:00:04]} 68. Kc6 {[%clk 0:00:10]}  Qa6+ {[%clk 0:00:03]} 69. Kd7 {[%clk 0:00:10]}  Qxc4 {[%clk 0:00:03]} 70. e7 {[%clk 0:00:11]}  Qb5+ {[%clk 0:00:04]} 71. Kd8 {[%clk 0:00:10]}  Qb6+ {[%clk 0:00:05]} 72. Kd7 {[%clk 0:00:10]}  Qb7+ {[%clk 0:00:05]} 73. Ke6 {[%clk 0:00:10]}  Qd5+ {[%clk 0:00:02]} 74. Kf6 {[%clk 0:00:10]}  Qxd6+ {[%clk 0:00:03]} 75. Kf7 {[%clk 0:00:11]}  Qd7 {[%clk 0:00:03]} 76. Kf8 {[%clk 0:00:10]}  Qd6 {[%clk 0:00:03]} 77. Kf7 {[%clk 0:00:10]}  Qf4+ {[%clk 0:00:03]} 78. Kg8 {[%clk 0:00:10]}  Qg5+ {[%clk 0:00:04]} 79. Kf8 {[%clk 0:00:10]}  Qf6+ {[%clk 0:00:04]} 80. Ke8 {[%clk 0:00:10]}  Kd5 {[%clk 0:00:04]} 81. Kd7 {[%clk 0:00:11]}  Qe6+ {[%clk 0:00:04]} 82. Kd8 {[%clk 0:00:11]}  Qf6 {[%clk 0:00:04]} 83. Kd7 {[%clk 0:00:11]}  Qd6+ {[%clk 0:00:04]} 84. Ke8 {[%clk 0:00:11]}  Ke6 {[%clk 0:00:04]} 85. Kf8 {[%clk 0:00:11]}  Qxe7+ {[%clk 0:00:05]} 86. Kg8 {[%clk 0:00:12]}  Kf6 {[%clk 0:00:05]} 87. Kh8 {[%clk 0:00:11]}  Qg7# {[%clk 0:00:06]} 0-1

[Event "December 19 Early 2023"]
[Site "https://www.chess.com"]
[Date "2023.12.19"]
[Round "6"]
[White "Franchini, Gabriele"]
[Black "Dwilewicz, Katarzyna"]
[Result "1-0"]
[Board "189"]
[TimeControl "180+1"]
[WhiteFideId "806790"]
[BlackFideId "1148486"]
[WhiteElo "2215"]
[BlackElo "2098"]
[WhiteTeam "ITA"]
[BlackTeam "POL"]
[WhiteClock "0:00:10"]
[BlackClock "0:00:00"]

1. e4 {[%clk 0:03:00]}  c5 {[%clk 0:02:58]} 2. Nc3 {[%clk 0:03:00]}  Nc6 {[%clk 0:02:58]} 3. Bb5 {[%clk 0:02:59]}  g6 {[%clk 0:02:57]} 4. Bxc6 {[%clk 0:02:59]}  bxc6 {[%clk 0:02:57]} 5. f4 {[%clk 0:02:56]}  Bg7 {[%clk 0:02:49]} 6. Nf3 {[%clk 0:02:54]}  d6 {[%clk 0:02:50]} 7. d3 {[%clk 0:02:54]}  Nf6 {[%clk 0:02:48]} 8. h3 {[%clk 0:02:53]}  Rb8 {[%clk 0:02:46]} 9. O-O {[%clk 0:02:53]}  O-O {[%clk 0:02:46]} 10. Qe1 {[%clk 0:02:51]}  e6 {[%clk 0:02:29]} 11. Qh4 {[%clk 0:02:39]}  Nh5 {[%clk 0:02:23]} 12. Qf2 {[%clk 0:02:35]}  f5 {[%clk 0:02:17]} 13. e5 {[%clk 0:02:26]}  d5 {[%clk 0:02:03]} 14. Qxc5 {[%clk 0:02:20]}  Qb6 {[%clk 0:01:49]} 15. Qxb6 {[%clk 0:02:17]}  axb6 {[%clk 0:01:49]} 16. d4 {[%clk 0:02:03]}  Ng3 {[%clk 0:01:47]} 17. Rd1 {[%clk 0:01:54]}  c5 {[%clk 0:01:45]} 18. Be3 {[%clk 0:01:45]}  Ne4 {[%clk 0:01:32]} 19. Nxe4 {[%clk 0:01:40]}  fxe4 {[%clk 0:01:28]} 20. Nh2 {[%clk 0:01:31]}  cxd4 {[%clk 0:01:00]} 21. Rxd4 {[%clk 0:01:32]}  Ba6 {[%clk 0:00:55]} 22. g3 {[%clk 0:01:26]}  Rfc8 {[%clk 0:00:54]} 23. Rd2 {[%clk 0:01:17]}  Rc6 {[%clk 0:00:47]} 24. Bd4 {[%clk 0:01:10]}  Rbc8 {[%clk 0:00:46]} 25. c3 {[%clk 0:01:10]}  Bd3 {[%clk 0:00:44]} 26. Nf1 {[%clk 0:01:10]}  h6 {[%clk 0:00:40]} 27. Ne3 {[%clk 0:01:09]}  Kf7 {[%clk 0:00:39]} 28. Kf2 {[%clk 0:01:01]}  Ke7 {[%clk 0:00:39]} 29. a4 {[%clk 0:00:44]}  Rf8 {[%clk 0:00:36]} 30. Kg2 {[%clk 0:00:42]}  Ra8 {[%clk 0:00:29]} 31. b4 {[%clk 0:00:39]}  b5 {[%clk 0:00:12]} 32. a5 {[%clk 0:00:39]}  Kd7 {[%clk 0:00:09]} 33. Nd1 {[%clk 0:00:37]}  Rca6 {[%clk 0:00:09]} 34. Nb2 {[%clk 0:00:36]}  Bc4 {[%clk 0:00:09]} 35. Nxc4 {[%clk 0:00:33]}  bxc4 {[%clk 0:00:09]} 36. Kf2 {[%clk 0:00:32]}  Kc6 {[%clk 0:00:09]} 37. Ke3 {[%clk 0:00:32]}  Kb5 {[%clk 0:00:10]} 38. g4 {[%clk 0:00:32]}  Rf8 {[%clk 0:00:10]} 39. Rf1 {[%clk 0:00:31]}  Raa8 {[%clk 0:00:10]} 40. Rdf2 {[%clk 0:00:28]}  h5 {[%clk 0:00:08]} 41. f5 {[%clk 0:00:23]}  Bh6+ {[%clk 0:00:08]} 42. Ke2 {[%clk 0:00:22]}  exf5 {[%clk 0:00:08]} 43. gxf5 {[%clk 0:00:22]}  gxf5 {[%clk 0:00:08]} 44. Rxf5 {[%clk 0:00:23]}  Rxf5 {[%clk 0:00:07]} 45. Rxf5 {[%clk 0:00:24]}  Rg8 {[%clk 0:00:07]} 46. Rxh5 {[%clk 0:00:17]}  Bc1 {[%clk 0:00:08]} 47. e6 {[%clk 0:00:13]}  Kc6 {[%clk 0:00:05]} 48. e7 {[%clk 0:00:10]}  Kd6 {[%clk 0:00:02]} 49. Bc5+ {[%clk 0:00:10]}  Kd7 {[%clk 0:00:02]} 50. Rxd5+ {[%clk 0:00:10]}  Ke6 {[%clk 0:00:00]} 51. Rd8 {[%clk 0:00:10]} 1-0

[Event "December 19 Early 2023"]
[Site "https://www.chess.com"]
[Date "2023.12.19"]
[Round "6"]
[White "Leve, Nitai"]
[Black "Papp, Petra"]
[Result "1-0"]
[Board "192"]
[TimeControl "180+1"]
[WhiteFideId "2006898"]
[BlackFideId "739049"]
[WhiteElo "2144"]
[BlackElo "2270"]
[WhiteTeam "USA"]
[BlackTeam "HUN"]
[WhiteClock "0:02:16"]
[BlackClock "0:01:54"]

1. e4 {[%clk 0:03:00]}  c5 {[%clk 0:02:55]} 2. Nf3 {[%clk 0:02:59]}  e6 {[%clk 0:02:54]} 3. d4 {[%clk 0:02:56]}  cxd4 {[%clk 0:02:54]} 4. Nxd4 {[%clk 0:02:57]}  Nf6 {[%clk 0:02:54]} 5. Nc3 {[%clk 0:02:53]}  Nc6 {[%clk 0:02:55]} 6. Nxc6 {[%clk 0:02:52]}  bxc6 {[%clk 0:02:54]} 7. e5 {[%clk 0:02:53]}  Nd5 {[%clk 0:02:55]} 8. Ne4 {[%clk 0:02:51]}  Qc7 {[%clk 0:02:54]} 9. f4 {[%clk 0:02:50]}  a5 {[%clk 0:02:54]} 10. c4 {[%clk 0:02:50]}  Bb4+ {[%clk 0:02:54]} 11. Ke2 {[%clk 0:02:51]}  O-O {[%clk 0:02:53]} 12. cxd5 {[%clk 0:02:50]}  cxd5 {[%clk 0:02:54]} 13. Nc3 {[%clk 0:02:45]}  f6 {[%clk 0:02:52]} 14. exf6 {[%clk 0:02:43]}  Rxf6 {[%clk 0:02:52]} 15. Be3 {[%clk 0:02:41]}  Bb7 {[%clk 0:02:37]} 16. a3 {[%clk 0:02:27]}  Be7 {[%clk 0:02:08]} 17. Rc1 {[%clk 0:02:23]}  Qb6 {[%clk 0:01:54]} 18. Bxb6 {[%clk 0:02:16]} 1-0

[Event "December 19 Early 2023"]
[Site "https://www.chess.com"]
[Date "2023.12.19"]
[Round "6"]
[White "Demina, Marya"]
[Black "Fonseca Manrique, Enrique"]
[Result "0-1"]
[Board "195"]
[TimeControl "180+1"]
[WhiteFideId "4195671"]
[BlackFideId "5114330"]
[WhiteElo "1978"]
[BlackElo "2133"]
[WhiteTeam "RUS"]
[BlackTeam "MEX"]
[WhiteClock "0:00:00"]
[BlackClock "0:00:35"]

1. d4 {[%clk 0:02:59]}  Nf6 {[%clk 0:02:58]} 2. Nf3 {[%clk 0:02:59]}  g6 {[%clk 0:02:58]} 3. c4 {[%clk 0:02:59]}  c5 {[%clk 0:02:58]} 4. Nc3 {[%clk 0:03:00]}  Bg7 {[%clk 0:02:57]} 5. e4 {[%clk 0:02:59]}  O-O {[%clk 0:02:55]} 6. Be2 {[%clk 0:03:00]}  d6 {[%clk 0:02:54]} 7. O-O {[%clk 0:03:00]}  a6 {[%clk 0:02:39]} 8. Re1 {[%clk 0:02:56]}  Bg4 {[%clk 0:02:36]} 9. h3 {[%clk 0:02:53]}  Bxf3 {[%clk 0:02:35]} 10. Bxf3 {[%clk 0:02:53]}  cxd4 {[%clk 0:02:36]} 11. Qxd4 {[%clk 0:02:54]}  Nc6 {[%clk 0:02:36]} 12. Qd1 {[%clk 0:02:51]}  Rc8 {[%clk 0:02:34]} 13. Be2 {[%clk 0:02:06]}  Ne5 {[%clk 0:02:21]} 14. Qd4 {[%clk 0:02:03]}  Nfd7 {[%clk 0:02:07]} 15. Qa7 {[%clk 0:01:45]}  Nc5 {[%clk 0:01:54]} 16. Be3 {[%clk 0:01:25]}  Ra8 {[%clk 0:01:50]} 17. Bxc5 {[%clk 0:01:25]}  Rxa7 {[%clk 0:01:50]} 18. Bxa7 {[%clk 0:01:24]}  b6 {[%clk 0:01:44]} 19. Nd5 {[%clk 0:01:21]}  Nd7 {[%clk 0:01:43]} 20. Rab1 {[%clk 0:00:59]}  e6 {[%clk 0:01:41]} 21. Nb4 {[%clk 0:00:56]}  Qc7 {[%clk 0:01:37]} 22. Red1 {[%clk 0:00:43]}  Qxa7 {[%clk 0:01:18]} 23. Rxd6 {[%clk 0:00:43]}  Nc5 {[%clk 0:01:08]} 24. Bf3 {[%clk 0:00:32]}  Be5 {[%clk 0:01:06]} 25. Rd2 {[%clk 0:00:29]}  Qc7 {[%clk 0:01:02]} 26. Rbd1 {[%clk 0:00:26]}  a5 {[%clk 0:01:01]} 27. Nc2 {[%clk 0:00:26]}  Bxb2 {[%clk 0:01:00]} 28. Ne3 {[%clk 0:00:26]}  Bc3 {[%clk 0:00:54]} 29. Rd6 {[%clk 0:00:23]}  Bf6 {[%clk 0:00:50]} 30. Ng4 {[%clk 0:00:22]}  Be7 {[%clk 0:00:49]} 31. R6d2 {[%clk 0:00:13]}  Rd8 {[%clk 0:00:49]} 32. e5 {[%clk 0:00:12]}  Rxd2 {[%clk 0:00:48]} 33. Rxd2 {[%clk 0:00:12]}  Kg7 {[%clk 0:00:47]} 34. g3 {[%clk 0:00:11]}  Nd7 {[%clk 0:00:45]} 35. Re2 {[%clk 0:00:07]}  h5 {[%clk 0:00:44]} 36. Ne3 {[%clk 0:00:04]}  Nxe5 {[%clk 0:00:43]} 37. Be4 {[%clk 0:00:02]}  Bc5 {[%clk 0:00:39]} 38. Nc2 {[%clk 0:00:01]}  Nxc4 {[%clk 0:00:38]} 39. Kg2 {[%clk 0:00:01]}  Qd6 {[%clk 0:00:36]} 40. Bf3 {[%clk 0:00:01]}  Ne5 {[%clk 0:00:35]} 41. Be4 {[%clk 0:00:00]}  Qd1 {[%clk 0:00:35]} 0-1

[Event "December 19 Early 2023"]
[Site "https://www.chess.com"]
[Date "2023.12.19"]
[Round "6"]
[White "Saim, Mohamed Ilias"]
[Black "Nery Junior, Jose Antonio"]
[Result "0-1"]
[Board "197"]
[TimeControl "180+1"]
[WhiteFideId "7900465"]
[BlackFideId "2104822"]
[WhiteElo "2063"]
[BlackElo "2197"]
[WhiteTeam "ALG"]
[BlackTeam "BRA"]
[WhiteClock "0:00:00"]
[BlackClock "0:00:37"]

1. d4 {[%clk 0:03:00]}  d5 {[%clk 0:02:55]} 2. c4 {[%clk 0:03:00]}  c6 {[%clk 0:02:55]} 3. Nf3 {[%clk 0:03:00]}  Nf6 {[%clk 0:02:56]} 4. e3 {[%clk 0:03:00]}  e6 {[%clk 0:02:56]} 5. Nbd2 {[%clk 0:02:59]}  Bd6 {[%clk 0:02:57]} 6. Bd3 {[%clk 0:02:59]}  Nbd7 {[%clk 0:02:58]} 7. O-O {[%clk 0:02:59]}  Qe7 {[%clk 0:02:58]} 8. e4 {[%clk 0:02:59]}  dxc4 {[%clk 0:02:54]} 9. Nxc4 {[%clk 0:02:57]}  e5 {[%clk 0:02:54]} 10. Re1 {[%clk 0:02:18]}  Bc7 {[%clk 0:02:44]} 11. Ncxe5 {[%clk 0:02:05]}  Nxe5 {[%clk 0:02:45]} 12. Nxe5 {[%clk 0:02:03]}  Bxe5 {[%clk 0:02:46]} 13. dxe5 {[%clk 0:02:00]}  Qxe5 {[%clk 0:02:47]} 14. Qb3 {[%clk 0:01:46]}  O-O {[%clk 0:02:44]} 15. Bd2 {[%clk 0:01:43]}  Be6 {[%clk 0:02:38]} 16. Qxb7 {[%clk 0:01:19]}  Rab8 {[%clk 0:02:35]} 17. Qxc6 {[%clk 0:01:18]}  Rfc8 {[%clk 0:02:32]} 18. Bc3 {[%clk 0:00:55]}  Qxh2+ {[%clk 0:02:04]} 19. Kxh2 {[%clk 0:00:52]}  Rxc6 {[%clk 0:02:05]} 20. Bxf6 {[%clk 0:00:39]}  gxf6 {[%clk 0:02:02]} 21. b3 {[%clk 0:00:36]}  Rbc8 {[%clk 0:02:01]} 22. f4 {[%clk 0:00:18]}  Rc3 {[%clk 0:01:37]} 23. Rad1 {[%clk 0:00:11]}  Bg4 {[%clk 0:01:28]} 24. Be2 {[%clk 0:00:11]}  f5 {[%clk 0:01:09]} 25. e5 {[%clk 0:00:08]}  Rc2 {[%clk 0:00:59]} 26. Bxg4 {[%clk 0:00:07]}  fxg4 {[%clk 0:01:00]} 27. e6 {[%clk 0:00:03]}  fxe6 {[%clk 0:00:56]} 28. Rxe6 {[%clk 0:00:04]}  R8c7 {[%clk 0:00:55]} 29. Re5 {[%clk 0:00:02]}  h6 {[%clk 0:00:43]} 30. Re8+ {[%clk 0:00:02]}  Kf7 {[%clk 0:00:42]} 31. Rdd8 {[%clk 0:00:02]}  Rxa2 {[%clk 0:00:40]} 32. Rf8+ {[%clk 0:00:00]}  Ke7 {[%clk 0:00:37]} 0-1